[Event "Early-Titled-Tuesday-Blitz-September-12-2023"]
[Site "Chess.com"]
[Date "2023.09.12"]
[Round "6"]
[White "lolo9292"]
[Black "Payyappat"]
[Result "0-1"]
[WhiteElo "2198"]
[BlackElo "2493"]
[TimeControl "180+1"]
[EndTime "9:08:16 PDT"]
[Termination "Payyappat won on time"]

1. d4 {[%clk 0:03:00.9]} 1... Nf6 {[%clk 0:02:59.7]} 2. Nc3 {[%clk 0:03:00.1]}
2... c5 {[%clk 0:02:59.6]} 3. Nf3 {[%clk 0:02:59]} 3... e6 {[%clk 0:02:58.6]} 4.
e4 {[%clk 0:02:58.5]} 4... d5 {[%clk 0:02:56.7]} 5. exd5 {[%clk 0:02:57]} 5...
exd5 {[%clk 0:02:57.3]} 6. Bb5+ {[%clk 0:02:54.8]} 6... Nc6 {[%clk 0:02:56.1]}
7. O-O {[%clk 0:02:54.8]} 7... Be6 {[%clk 0:02:55.5]} 8. Bg5 {[%clk 0:02:51.7]}
8... Be7 {[%clk 0:02:53.7]} 9. dxc5 {[%clk 0:02:47.6]} 9... O-O {[%clk
0:02:50.5]} 10. Bxc6 {[%clk 0:02:47.2]} 10... bxc6 {[%clk 0:02:50.4]} 11. b4
{[%clk 0:02:47.8]} 11... a5 {[%clk 0:02:46.9]} 12. a3 {[%clk 0:02:46.6]} 12...
Rb8 {[%clk 0:02:45.5]} 13. Rb1 {[%clk 0:02:43.7]} 13... axb4 {[%clk 0:02:34.5]}
14. axb4 {[%clk 0:02:44.6]} 14... h6 {[%clk 0:02:32.6]} 15. Bh4 {[%clk
0:02:42.1]} 15... Ne4 {[%clk 0:02:24.8]} 16. Nxe4 {[%clk 0:02:31.9]} 16... dxe4
{[%clk 0:02:23]} 17. Qxd8 {[%clk 0:02:29.6]} 17... Bxd8 {[%clk 0:02:18.7]} 18.
Bxd8 {[%clk 0:02:29.3]} 18... Rbxd8 {[%clk 0:02:15.1]} 19. Ne5 {[%clk
0:02:29.3]} 19... Bd5 {[%clk 0:02:13.9]} 20. c4 {[%clk 0:02:20.9]} 20... Be6
{[%clk 0:02:03.8]} 21. Nxc6 {[%clk 0:02:20.3]} 21... Rd3 {[%clk 0:02:00.5]} 22.
Rfc1 {[%clk 0:02:13.3]} 22... f5 {[%clk 0:01:57]} 23. b5 {[%clk 0:02:12.2]}
23... f4 {[%clk 0:01:53.7]} 24. b6 {[%clk 0:02:08.8]} 24... Bc8 {[%clk
0:01:42.4]} 25. b7 {[%clk 0:02:06.4]} 25... Bxb7 {[%clk 0:01:42.1]} 26. Rxb7
{[%clk 0:02:07.2]} 26... e3 {[%clk 0:01:42.2]} 27. f3 {[%clk 0:01:48.4]} 27...
Ra8 {[%clk 0:01:25.5]} 28. Ne7+ {[%clk 0:01:42.8]} 28... Kh7 {[%clk 0:01:20]}
29. Nd5 {[%clk 0:01:43.2]} 29... e2 {[%clk 0:01:02.1]} 30. Kf2 {[%clk
0:01:41.7]} 30... Rd1 {[%clk 0:01:01.1]} 31. Kxe2 {[%clk 0:01:35.2]} 31... Rxc1
{[%clk 0:01:01.2]} 32. Nxf4 {[%clk 0:01:22.2]} 32... Rxc4 {[%clk 0:00:58.1]} 33.
Ne6 {[%clk 0:01:22.3]} 33... Re8 {[%clk 0:00:55.6]} 34. Kd3 {[%clk 0:01:17.6]}
34... Rc1 {[%clk 0:00:36.2]} 35. Nxg7 {[%clk 0:01:17.3]} 35... Ree1 {[%clk
0:00:35.2]} 36. Nf5+ {[%clk 0:01:10.2]} 36... Kg6 {[%clk 0:00:34.2]} 37. Ne7+
{[%clk 0:01:09.9]} 37... Kf6 {[%clk 0:00:32.2]} 38. Nd5+ {[%clk 0:01:06.8]}
38... Ke6 {[%clk 0:00:29.4]} 39. Nf4+ {[%clk 0:01:06.5]} 39... Ke5 {[%clk
0:00:27.2]} 40. Ng6+ {[%clk 0:00:49.7]} 40... Kf6 {[%clk 0:00:22.6]} 41. Nf4
{[%clk 0:00:48.8]} 41... Rxc5 {[%clk 0:00:20.4]} 42. Rb6+ {[%clk 0:00:47.6]}
42... Kf5 {[%clk 0:00:18.1]} 43. g3 {[%clk 0:00:46.8]} 43... Rd1+ {[%clk
0:00:02.2]} 44. Ke2 {[%clk 0:00:46.8]} 44... Rdc1 {[%clk 0:00:02.6]} 45. Rd6
{[%clk 0:00:46]} 45... R5c2+ {[%clk 0:00:03.1]} 46. Rd2 {[%clk 0:00:45.7]} 46...
Rxd2+ {[%clk 0:00:03.1]} 47. Kxd2 {[%clk 0:00:46.6]} 47... Rh1 {[%clk
0:00:03.5]} 48. Ke3 {[%clk 0:00:39]} 48... Rxh2 {[%clk 0:00:03.4]} 49. g4+
{[%clk 0:00:39.7]} 49... Kg5 {[%clk 0:00:03.6]} 50. Ne6+ {[%clk 0:00:39.1]}
50... Kf6 {[%clk 0:00:04.2]} 51. Nf4 {[%clk 0:00:39.9]} 51... Ke5 {[%clk
0:00:04.7]} 52. Nh5 {[%clk 0:00:39.7]} 52... Rh1 {[%clk 0:00:04.7]} 53. Kf2
{[%clk 0:00:39.2]} 53... Ra1 {[%clk 0:00:04.2]} 54. Kg3 {[%clk 0:00:39.7]} 54...
Ke6 {[%clk 0:00:04.5]} 55. f4 {[%clk 0:00:39.4]} 55... Ra4 {[%clk 0:00:05.4]}
56. f5+ {[%clk 0:00:39]} 56... Ke5 {[%clk 0:00:06.3]} 57. Kh4 {[%clk 0:00:38.6]}
57... Rb4 {[%clk 0:00:06.2]} 58. f6 {[%clk 0:00:38.7]} 58... Ke6 {[%clk
0:00:07.1]} 59. Kg3 {[%clk 0:00:37.5]} 59... Kf7 {[%clk 0:00:07.7]} 60. Kf3
{[%clk 0:00:36.4]} 60... Kg6 {[%clk 0:00:08.3]} 61. Kg3 {[%clk 0:00:37]} 61...
Rb5 {[%clk 0:00:08.4]} 62. Kh4 {[%clk 0:00:37]} 62... Rb4 {[%clk 0:00:08.3]} 63.
Kg3 {[%clk 0:00:37]} 63... Rb5 {[%clk 0:00:08.5]} 64. Kh4 {[%clk 0:00:35.4]}
64... Rb3 {[%clk 0:00:09.1]} 65. Nf4+ {[%clk 0:00:28.2]} 65... Kxf6 {[%clk
0:00:09.5]} 66. Nh5+ {[%clk 0:00:22.5]} 66... Kg6 {[%clk 0:00:09.6]} 67. Nf4+
{[%clk 0:00:23.1]} 67... Kf6 {[%clk 0:00:10.1]} 68. Nh5+ {[%clk 0:00:23.6]}
68... Kf7 {[%clk 0:00:10.6]} 69. Nf4 {[%clk 0:00:23.1]} 69... Rf3 {[%clk
0:00:10.9]} 70. Nh5 {[%clk 0:00:22]} 70... Kg6 {[%clk 0:00:10.6]} 71. Ng3 {[%clk
0:00:22.2]} 71... Ra3 {[%clk 0:00:10.6]} 72. Nh5 {[%clk 0:00:21.6]} 72... Ra4
{[%clk 0:00:11]} 73. Ng3 {[%clk 0:00:21.3]} 73... Ra1 {[%clk 0:00:08.4]} 74. Nh5
{[%clk 0:00:20]} 74... Rh1+ {[%clk 0:00:08.8]} 75. Kg3 {[%clk 0:00:20.6]} 75...
Kg5 {[%clk 0:00:09.4]} 76. Nf4 {[%clk 0:00:20.3]} 76... Rg1+ {[%clk 0:00:09.3]}
77. Ng2 {[%clk 0:00:20.8]} 77... Ra1 {[%clk 0:00:08.4]} 78. Ne3 {[%clk
0:00:13.2]} 78... Ra3 {[%clk 0:00:08.9]} 79. Kf3 {[%clk 0:00:13.4]} 79... Rb3
{[%clk 0:00:08.6]} 80. Ke4 {[%clk 0:00:11.4]} 80... Rb4+ {[%clk 0:00:07]} 81.
Kf3 {[%clk 0:00:11.9]} 81... Rf4+ {[%clk 0:00:07.2]} 82. Kg3 {[%clk 0:00:11.7]}
82... Ra4 {[%clk 0:00:07.9]} 83. Kf3 {[%clk 0:00:11.5]} 83... Ra3 {[%clk
0:00:08.2]} 84. Ke4 {[%clk 0:00:11.6]} 84... Kf6 {[%clk 0:00:08.6]} 85. Kf4
{[%clk 0:00:11.1]} 85... Ra4+ {[%clk 0:00:08.1]} 86. Kg3 {[%clk 0:00:11.3]}
86... Ke5 {[%clk 0:00:09]} 87. Kf3 {[%clk 0:00:11.6]} 87... Ra3 {[%clk
0:00:09.2]} 88. Ke2 {[%clk 0:00:02.8]} 88... Kf4 {[%clk 0:00:10.1]} 89. Nc4
{[%clk 0:00:01.8]} 89... Ra6 {[%clk 0:00:09.7]} 0-1

[Event "Early-Titled-Tuesday-Blitz-September-12-2023"]
[Site "Chess.com"]
[Date "2023.09.12"]
[Round "6"]
[White "temus_galaktionov"]
[Black "BillieKimbah"]
[Result "1/2-1/2"]
[WhiteElo "2827"]
[BlackElo "3016"]
[TimeControl "180+1"]
[EndTime "9:08:21 PDT"]
[Termination "Game drawn - insufficient material"]

1. d4 {[%clk 0:03:00]} 1... Nf6 {[%clk 0:02:59.7]} 2. Nf3 {[%clk 0:03:00.1]}
2... d5 {[%clk 0:02:59.5]} 3. c4 {[%clk 0:03:00.1]} 3... e6 {[%clk 0:02:59.1]}
4. Nc3 {[%clk 0:03:00.1]} 4... h6 {[%clk 0:02:56.2]} 5. cxd5 {[%clk 0:02:59.2]}
5... exd5 {[%clk 0:02:57.1]} 6. Bf4 {[%clk 0:02:59.4]} 6... Bd6 {[%clk
0:02:57.3]} 7. Be5 {[%clk 0:02:59.6]} 7... c6 {[%clk 0:02:56.3]} 8. e3 {[%clk
0:02:59.8]} 8... Qe7 {[%clk 0:02:56.1]} 9. Bd3 {[%clk 0:02:57]} 9... Nbd7 {[%clk
0:02:55.7]} 10. Bxd6 {[%clk 0:02:51.9]} 10... Qxd6 {[%clk 0:02:56.6]} 11. O-O
{[%clk 0:02:51.7]} 11... O-O {[%clk 0:02:56.5]} 12. Qc2 {[%clk 0:02:51.3]} 12...
Re8 {[%clk 0:02:56.6]} 13. Rab1 {[%clk 0:02:49.4]} 13... a5 {[%clk 0:02:47.9]}
14. a3 {[%clk 0:02:47.9]} 14... Qe7 {[%clk 0:02:40]} 15. b4 {[%clk 0:02:43.3]}
15... axb4 {[%clk 0:02:39.7]} 16. axb4 {[%clk 0:02:43.2]} 16... b5 {[%clk
0:02:39.7]} 17. Ne2 {[%clk 0:02:39.6]} 17... Bb7 {[%clk 0:02:36.6]} 18. Nc1
{[%clk 0:02:39.3]} 18... Nb6 {[%clk 0:02:36]} 19. Nb3 {[%clk 0:02:39.1]} 19...
Nc4 {[%clk 0:02:35.9]} 20. Bxc4 {[%clk 0:02:35.1]} 20... dxc4 {[%clk 0:02:34.6]}
21. Nc5 {[%clk 0:02:35.5]} 21... Bc8 {[%clk 0:02:23.4]} 22. Ne5 {[%clk
0:02:31.9]} 22... Qc7 {[%clk 0:02:21.8]} 23. Ra1 {[%clk 0:02:29.9]} 23... Rxa1
{[%clk 0:02:14.3]} 24. Rxa1 {[%clk 0:02:29.3]} 24... Nd5 {[%clk 0:02:14.5]} 25.
Rb1 {[%clk 0:02:24.3]} 25... f6 {[%clk 0:02:09.7]} 26. Nf3 {[%clk 0:02:16.8]}
26... Rd8 {[%clk 0:01:56.8]} 27. h3 {[%clk 0:02:12]} 27... Qe7 {[%clk
0:01:50.4]} 28. Nh2 {[%clk 0:01:49.1]} 28... Be6 {[%clk 0:01:44.7]} 29. Nf1
{[%clk 0:01:47.4]} 29... Ra8 {[%clk 0:01:42.3]} 30. Ng3 {[%clk 0:01:45.4]} 30...
Bf7 {[%clk 0:01:40.9]} 31. e4 {[%clk 0:01:38.5]} 31... Nf4 {[%clk 0:01:36.8]}
32. Ne2 {[%clk 0:01:38]} 32... Nxe2+ {[%clk 0:01:30.2]} 33. Qxe2 {[%clk
0:01:38.9]} 33... Ra3 {[%clk 0:01:29.9]} 34. Qd2 {[%clk 0:01:35.1]} 34... Qa7
{[%clk 0:01:27]} 35. d5 {[%clk 0:01:34]} 35... Ra1 {[%clk 0:01:23.1]} 36. Rd1
{[%clk 0:01:26.5]} 36... c3 {[%clk 0:01:21.5]} 37. Qd3 {[%clk 0:01:26.8]} 37...
cxd5 {[%clk 0:01:16.3]} 38. exd5 {[%clk 0:01:26.1]} 38... Bg6 {[%clk 0:01:10.8]}
39. Rxa1 {[%clk 0:01:14]} 39... Qxa1+ {[%clk 0:01:11.7]} 40. Qf1 {[%clk
0:01:14.5]} 40... Qxf1+ {[%clk 0:00:45.5]} 41. Kxf1 {[%clk 0:01:15.4]} 41... Bf7
{[%clk 0:00:36.9]} 42. Ke2 {[%clk 0:01:05.3]} 42... Bxd5 {[%clk 0:00:36.3]} 43.
g3 {[%clk 0:00:59.3]} 43... Bc4+ {[%clk 0:00:32.3]} 44. Ke3 {[%clk 0:00:59.3]}
44... g5 {[%clk 0:00:30.8]} 45. Ne4 {[%clk 0:00:58.8]} 45... c2 {[%clk
0:00:30.4]} 46. Kd2 {[%clk 0:00:58.6]} 46... Kg7 {[%clk 0:00:25.8]} 47. Kxc2
{[%clk 0:00:57.4]} 47... Bf1 {[%clk 0:00:25.7]} 48. Nc3 {[%clk 0:00:53.3]} 48...
Kg6 {[%clk 0:00:24.5]} 49. Kd2 {[%clk 0:00:52.6]} 49... h5 {[%clk 0:00:23]} 50.
Ke3 {[%clk 0:00:49.1]} 50... Kf5 {[%clk 0:00:22.3]} 51. f3 {[%clk 0:00:43.7]}
51... h4 {[%clk 0:00:21.1]} 52. gxh4 {[%clk 0:00:37.4]} 52... gxh4 {[%clk
0:00:22]} 53. Kf2 {[%clk 0:00:37.5]} 53... Bc4 {[%clk 0:00:19.9]} 54. Ke3 {[%clk
0:00:37.5]} 54... Ke5 {[%clk 0:00:20.4]} 55. f4+ {[%clk 0:00:32.4]} 55... Kf5
{[%clk 0:00:20.2]} 56. Ne4 {[%clk 0:00:32.5]} 56... Bf1 {[%clk 0:00:18.4]} 57.
Nc3 {[%clk 0:00:25.1]} 57... Ke6 {[%clk 0:00:15.4]} 58. Kf3 {[%clk 0:00:20]}
58... Kf5 {[%clk 0:00:09.6]} 59. Ke3 {[%clk 0:00:17.4]} 59... Bxh3 {[%clk
0:00:09.5]} 60. Nxb5 {[%clk 0:00:17.6]} 60... Bf1 {[%clk 0:00:09.3]} 61. Nd4+
{[%clk 0:00:15.7]} 61... Kg4 {[%clk 0:00:09.9]} 62. Kf2 {[%clk 0:00:14.2]} 62...
Bc4 {[%clk 0:00:09.5]} 63. b5 {[%clk 0:00:14.8]} 63... Bd5 {[%clk 0:00:08.2]}
64. Kg1 {[%clk 0:00:07.9]} 64... Kxf4 {[%clk 0:00:07.5]} 65. Kh2 {[%clk
0:00:07.7]} 65... Kg4 {[%clk 0:00:07.9]} 66. b6 {[%clk 0:00:06.9]} 66... f5
{[%clk 0:00:06.7]} 67. Nb5 {[%clk 0:00:05.9]} 67... f4 {[%clk 0:00:06.1]} 68.
Nd6 {[%clk 0:00:06.2]} 68... f3 {[%clk 0:00:06.3]} 69. b7 {[%clk 0:00:06.6]}
69... Bxb7 {[%clk 0:00:06.6]} 70. Nxb7 {[%clk 0:00:07.1]} 70... h3 {[%clk
0:00:07.3]} 71. Kg1 {[%clk 0:00:03.5]} 71... Kg3 {[%clk 0:00:07.6]} 72. Nc5
{[%clk 0:00:02.8]} 72... f2+ {[%clk 0:00:07]} 73. Kf1 {[%clk 0:00:03.2]} 73...
Kf3 {[%clk 0:00:05.5]} 74. Nd3 {[%clk 0:00:03.7]} 74... h2 {[%clk 0:00:06]} 75.
Nxf2 {[%clk 0:00:04.6]} 75... Ke3 {[%clk 0:00:06.1]} 76. Nh1 {[%clk 0:00:05.5]}
76... Kf3 {[%clk 0:00:06.5]} 77. Nf2 {[%clk 0:00:06]} 77... Ke3 {[%clk
0:00:06.8]} 78. Kg2 {[%clk 0:00:06.3]} 78... Ke2 {[%clk 0:00:07.2]} 79. Nh1
{[%clk 0:00:07.1]} 79... Ke3 {[%clk 0:00:07.5]} 80. Kxh2 {[%clk 0:00:07.6]}
1/2-1/2

[Event "Early-Titled-Tuesday-Blitz-September-12-2023"]
[Site "Chess.com"]
[Date "2023.09.12"]
[Round "6"]
[White "Quattroporte300"]
[Black "M_One1126"]
[Result "0-1"]
[WhiteElo "2404"]
[BlackElo "2572"]
[TimeControl "180+1"]
[EndTime "9:08:21 PDT"]
[Termination "M_One1126 won on time"]

1. e4 {[%clk 0:03:00.9]} 1... c5 {[%clk 0:03:00.2]} 2. Nf3 {[%clk 0:02:59.8]}
2... a6 {[%clk 0:02:59.8]} 3. c3 {[%clk 0:02:59.2]} 3... d5 {[%clk 0:02:59.7]}
4. exd5 {[%clk 0:02:58.6]} 4... Qxd5 {[%clk 0:03:00.6]} 5. d4 {[%clk 0:02:58.1]}
5... Nf6 {[%clk 0:03:01.2]} 6. Be2 {[%clk 0:02:56.9]} 6... Bf5 {[%clk
0:03:01.3]} 7. O-O {[%clk 0:02:57]} 7... cxd4 {[%clk 0:03:01.2]} 8. cxd4 {[%clk
0:02:56.6]} 8... Bxb1 {[%clk 0:03:01.6]} 9. Rxb1 {[%clk 0:02:54.8]} 9... e6
{[%clk 0:03:01.9]} 10. b3 {[%clk 0:02:48.4]} 10... Nc6 {[%clk 0:03:01.7]} 11.
Bb2 {[%clk 0:02:47.7]} 11... Be7 {[%clk 0:02:57.8]} 12. Bc4 {[%clk 0:02:48]}
12... Qh5 {[%clk 0:02:49.7]} 13. Ne5 {[%clk 0:02:45]} 13... Qxd1 {[%clk
0:02:47.1]} 14. Rfxd1 {[%clk 0:02:42.8]} 14... Nb4 {[%clk 0:02:40.1]} 15. a3
{[%clk 0:02:17.3]} 15... Nbd5 {[%clk 0:02:39.2]} 16. Rbc1 {[%clk 0:02:16.8]}
16... O-O {[%clk 0:02:37.5]} 17. b4 {[%clk 0:02:11.1]} 17... Rfd8 {[%clk
0:02:36.3]} 18. Nd3 {[%clk 0:02:09]} 18... a5 {[%clk 0:02:10.9]} 19. b5 {[%clk
0:02:02.5]} 19... Rac8 {[%clk 0:02:08.8]} 20. Bb3 {[%clk 0:01:53.2]} 20... h5
{[%clk 0:01:46.5]} 21. Kf1 {[%clk 0:01:51.5]} 21... g6 {[%clk 0:01:41.6]} 22. g3
{[%clk 0:01:36.4]} 22... Rxc1 {[%clk 0:01:19.3]} 23. Rxc1 {[%clk 0:01:34.6]}
23... g5 {[%clk 0:01:08.3]} 24. Ke2 {[%clk 0:01:32.1]} 24... g4 {[%clk
0:01:05.1]} 25. Nc5 {[%clk 0:01:29.3]} 25... b6 {[%clk 0:01:03.3]} 26. Na6
{[%clk 0:01:18.6]} 26... Ne4 {[%clk 0:00:57.5]} 27. Nc7 {[%clk 0:01:08.5]} 27...
Bg5 {[%clk 0:00:33.1]} 28. Rc6 {[%clk 0:00:57.5]} 28... Nxc7 {[%clk 0:00:26.8]}
29. Rxc7 {[%clk 0:00:57.4]} 29... Bf6 {[%clk 0:00:22.3]} 30. Ke3 {[%clk
0:00:54.4]} 30... Nd6 {[%clk 0:00:19.3]} 31. a4 {[%clk 0:00:46.7]} 31... Nf5+
{[%clk 0:00:18.3]} 32. Ke2 {[%clk 0:00:39.3]} 32... Bxd4 {[%clk 0:00:17.9]} 33.
Bc1 {[%clk 0:00:33.3]} 33... Bc5 {[%clk 0:00:16.3]} 34. Be3 {[%clk 0:00:29.8]}
34... Nxe3 {[%clk 0:00:11.6]} 35. fxe3 {[%clk 0:00:29.7]} 35... Re8 {[%clk
0:00:07.7]} 36. e4 {[%clk 0:00:23.5]} 36... Kg7 {[%clk 0:00:07.5]} 37. Kd3
{[%clk 0:00:19.4]} 37... Kf6 {[%clk 0:00:06.1]} 38. e5+ {[%clk 0:00:18.2]} 38...
Kg6 {[%clk 0:00:05]} 39. Ke4 {[%clk 0:00:17]} 39... Rd8 {[%clk 0:00:04.2]} 40.
Bc2 {[%clk 0:00:17.1]} 40... Rd4+ {[%clk 0:00:04.2]} 41. Ke3+ {[%clk 0:00:17.5]}
41... Kg7 {[%clk 0:00:04.7]} 42. Ke2 {[%clk 0:00:09.8]} 42... Rd5 {[%clk
0:00:04.6]} 43. Bb3 {[%clk 0:00:06.4]} 43... Rxe5+ {[%clk 0:00:05]} 44. Kd2
{[%clk 0:00:06.9]} 44... Re3 {[%clk 0:00:05.9]} 45. Rxc5 {[%clk 0:00:05.5]}
45... Rxb3 {[%clk 0:00:05]} 46. Rc6 {[%clk 0:00:06.1]} 46... Ra3 {[%clk
0:00:04.6]} 47. Rxb6 {[%clk 0:00:06.6]} 47... Rxa4 {[%clk 0:00:05.1]} 48. Ra6
{[%clk 0:00:07.1]} 48... Ra2+ {[%clk 0:00:03.5]} 49. Ke3 {[%clk 0:00:05.7]}
49... a4 {[%clk 0:00:02.6]} 50. b6 {[%clk 0:00:05.5]} 50... Rb2 {[%clk 0:00:03]}
51. Kf4 {[%clk 0:00:02.5]} 51... Kf6 {[%clk 0:00:02.1]} 52. Ke3 {[%clk
0:00:02.3]} 52... Rb3+ {[%clk 0:00:02.5]} 53. Ke2 {[%clk 0:00:02.2]} 53... Kg5
{[%clk 0:00:03]} 54. Ra5+ {[%clk 0:00:02.2]} 54... f5 {[%clk 0:00:02.9]} 55. Ra6
{[%clk 0:00:02.5]} 55... e5 {[%clk 0:00:03.1]} 56. Rxa4 {[%clk 0:00:02.3]} 56...
Rxb6 {[%clk 0:00:03.4]} 57. Ra8 {[%clk 0:00:02.7]} 57... Rg6 {[%clk 0:00:03]}
58. Kf2 {[%clk 0:00:02.8]} 58... h4 {[%clk 0:00:03.4]} 59. Rh8 {[%clk
0:00:02.9]} 59... hxg3+ {[%clk 0:00:03.8]} 60. hxg3 {[%clk 0:00:03.6]} 60... Rd6
{[%clk 0:00:04]} 61. Re8 {[%clk 0:00:03.5]} 61... Kf6 {[%clk 0:00:04.9]} 62.
Rf8+ {[%clk 0:00:03.5]} 62... Ke6 {[%clk 0:00:05.5]} 63. Re8+ {[%clk 0:00:04]}
63... Kd5 {[%clk 0:00:06.4]} 64. Rf8 {[%clk 0:00:03.4]} 64... Ke4 {[%clk
0:00:06.4]} 65. Ra8 {[%clk 0:00:03.3]} 65... Rd2+ {[%clk 0:00:06.9]} 66. Ke1
{[%clk 0:00:03.9]} 66... Rd3 {[%clk 0:00:07.3]} 67. Kf2 {[%clk 0:00:04]} 67...
Rf3+ {[%clk 0:00:07.1]} 68. Kg2 {[%clk 0:00:04.7]} 68... Rb3 {[%clk 0:00:07]}
69. Ra4+ {[%clk 0:00:05.1]} 69... Ke3 {[%clk 0:00:07.5]} 70. Ra1 {[%clk
0:00:03]} 70... Rd3 {[%clk 0:00:07.9]} 71. Re1+ {[%clk 0:00:03.2]} 71... Kd4
{[%clk 0:00:08.4]} 72. Rf1 {[%clk 0:00:03.1]} 72... Rd2+ {[%clk 0:00:08.8]} 73.
Kg1 {[%clk 0:00:03.2]} 73... Ke4 {[%clk 0:00:09.4]} 74. Re1+ {[%clk 0:00:03]}
74... Kf3 {[%clk 0:00:10]} 75. Rxe5 {[%clk 0:00:03.1]} 75... Rd1+ {[%clk
0:00:08.6]} 76. Kh2 {[%clk 0:00:03.2]} 76... Rd2+ {[%clk 0:00:09.5]} 77. Kg1
{[%clk 0:00:03]} 77... Kxg3 {[%clk 0:00:10.4]} 78. Re3+ {[%clk 0:00:03.3]} 78...
Kf4 {[%clk 0:00:10.4]} 79. Ra3 {[%clk 0:00:03.9]} 79... g3 {[%clk 0:00:10.8]}
80. Ra4+ {[%clk 0:00:01.6]} 80... Kf3 {[%clk 0:00:11.2]} 81. Ra3+ {[%clk
0:00:01.8]} 81... Kg4 {[%clk 0:00:11.7]} 82. Ra4+ {[%clk 0:00:02.4]} 82... f4
{[%clk 0:00:12.3]} 83. Ra8 {[%clk 0:00:02.7]} 83... Rc2 {[%clk 0:00:11]} 84.
Rg8+ {[%clk 0:00:02.5]} 84... Kf3 {[%clk 0:00:11.3]} 85. Re8 {[%clk 0:00:02.1]}
85... Rc1+ {[%clk 0:00:11.6]} 0-1